bitfinex/quotes_BTCUSD_20251104
["timestamp","ask_amount","ask_price","bid_price","bid_amount"]
[1762216500049,0.62310021,106450.0,106440.0,0.002]
[1762216500273,2.24037621,106450.0,106440.0,0.002]
[1762216500909,0.18791447,106440.0,106420.0,0.28888315]
[1762216501144,0.58920749,106430.0,106420.0,0.32506543]
[1762216501313,0.38255858,106430.0,106420.0,0.32506543]
[1762216501525,0.20451447,106440.0,106420.0,0.32506543]
[1762216501526,0.03806,106450.0,106430.0,0.18790094]
[1762216501742,0.01227,106450.0,106440.0,0.31564083]
[1762216502167,0.001,106450.0,106440.0,0.31564083]
[1762216502817,0.34,106460.0,106450.0,0.18988163]
[1762216503032,0.56379881,106470.0,106460.0,0.18786398]
[1762216503259,1.82892998,106460.0,106450.0,0.002]
[1762216503478,1.82892998,106460.0,106420.0,0.28688315]
[1762216503479,0.18790728,106440.0,106420.0,0.28688315]
[1762216503755,1.617276,106440.0,106430.0,0.22609922]
[1762216503988,0.01127,106450.0,106440.0,0.18789928]
[1762216504210,0.34,106460.0,106450.0,0.18788163]
[1762216504439,0.001,106460.0,106450.0,0.18988163]
[1762216504665,0.20015365,106470.0,106460.0,0.18986398]
[1762216504884,0.02890731,106470.0,106460.0,0.27942325]
[1762216505107,0.21675365,106470.0,106460.0,0.09155927]
[1762216505328,0.55675365,106470.0,106460.0,0.27942325]
[1762216505545,0.36890731,106470.0,106460.0,0.27942325]
[1762216505771,2.71133984,106470.0,106460.0,0.002]
[1762216505994,2.71133984,106470.0,106460.0,0.18786398]
[1762216505995,1.09406384,106470.0,106460.0,0.18786398]
[1762216506207,2.71133984,106470.0,106460.0,0.18786398]
[1762216506440,1.617276,106460.0,106450.0,0.22606356]
[1762216506649,0.0166,106460.0,106450.0,0.22606356]
[1762216506873,1.08346384,106470.0,106460.0,0.18786398]
[1762216507082,0.56994365,106470.0,106460.0,0.27742325]
[1762216507284,0.58454365,106470.0,106460.0,0.27742325]
[1762216507543,0.58454365,106470.0,106450.0,0.22606356]
[1762216507766,0.0176,106460.0,106450.0,0.22606356]
[1762216507976,0.22619595,106460.0,106450.0,0.22606356]
[1762216508192,2.36205017,106460.0,106450.0,0.002]
[1762216508418,1.84852998,106460.0,106450.0,0.002]
[1762216508825,2.36105017,106460.0,106450.0,0.002]
[1762216509057,2.36105017,106460.0,106450.0,0.18988163]
[1762216509261,2.36105017,106460.0,106450.0,0.002]
[1762216509683,0.18788163,106450.0,106440.0,0.12774155]
[1762216509885,0.75306182,106450.0,106440.0,0.12774155]
[1762216510095,0.75306182,106450.0,106440.0,0.002]
[1762216510322,0.18789928,106440.0,106430.0,0.18791691]
[1762216510525,0.71801947,106440.0,106430.0,0.002]
[1762216510726,0.71801947,106440.0,106430.0,0.18991694]
[1762216510946,0.22294163,106450.0,106440.0,0.18989928]
[1762216511157,0.22294163,106450.0,106440.0,0.27945855]
[1762216511398,0.23954163,106450.0,106440.0,0.09155927]
[1762216511624,0.75306182,106450.0,106440.0,0.002]
[1762216512255,1.09306182,106450.0,106440.0,0.002]
[1762216512464,1.09306182,106450.0,106430.0,0.003]
[1762216512465,1.80517528,106440.0,106430.0,0.003]
[1762216512668,1.80517528,106440.0,106430.0,0.002]
[1762216512669,2.35908547,106440.0,106430.0,0.002]
[1762216513117,0.18793459,106420.0,106410.0,0.23707466]
[1762216513354,0.70145478,106420.0,106410.0,0.20089238]
[1762216513599,0.71805478,106420.0,106410.0,0.19151056]
[1762216514011,0.0166,106420.0,106410.0,0.19151056]
[1762216514214,0.03533197,106420.0,106410.0,0.19165551]
[1762216514417,0.01127,106430.0,106420.0,0.18793459]
[1762216514626,0.01127,106430.0,106420.0,0.27949386]
[1762216514841,0.01172,106440.0,106430.0,0.18990858]
[1762216515052,0.01272,106440.0,106430.0,0.18990858]
[1762216515257,0.01272,106440.0,106430.0,0.22609086]
[1762216515458,0.01172,106440.0,106430.0,0.22609086]
[1762216515882,0.21809928,106440.0,106430.0,0.22609086]
[1762216516102,0.0302,106440.0,106430.0,0.22609086]
[1762216516322,0.0312,106440.0,106430.0,0.22609086]
[1762216517246,0.21909928,106440.0,106430.0,0.03818228]
[1762216517470,0.24365928,106440.0,106430.0,0.03818228]
[1762216517703,0.24365928,106440.0,106420.0,0.28689058]
[1762216517704,0.18791694,106430.0,106420.0,0.28689058]
[1762216517920,0.22895694,106430.0,106420.0,0.31567614]
[1762216518137,0.04104,106430.0,106420.0,0.31567614]
[1762216518355,0.22895694,106430.0,106420.0,0.31567614]
[1762216518781,0.22895694,106430.0,106420.0,0.12774155]
[1762216519237,2.31530583,106430.0,106420.0,0.10793632]
[1762216519457,2.31530583,106430.0,106420.0,0.25968863]
[1762216519674,2.31530583,106430.0,106420.0,0.18993459]
[1762216519883,2.14727619,106430.0,106420.0,0.27949386]
[1762216520100,0.01648,106430.0,106420.0,0.27949386]
[1762216522228,0.20439694,106430.0,106420.0,0.27949386]
[1762216522650,0.22895694,106430.0,106420.0,0.002]
[1762216522907,1.84623294,106430.0,106420.0,0.27949386]
[1762216523345,1.658316,106430.0,106420.0,0.27949386]
[1762216523772,1.84623294,106430.0,106420.0,0.27949386]
[1762216525051,1.84623294,106430.0,106420.0,0.09155927]
[1762216525250,1.658316,106430.0,106420.0,0.27949386]
[1762216525904,0.01648,106430.0,106420.0,0.27949386]
[1762216526107,0.37628,106440.0,106430.0,0.18791694]
[1762216526477,0.01172,106440.0,106430.0,0.22609922]
[1762216527207,0.35127,106450.0,106440.0,0.18989928]
[1762216527448,0.01127,106450.0,106440.0,0.27945855]
[1762216527661,0.02775,106450.0,106440.0,0.27745855]
[1762216527875,0.05231,106450.0,106440.0,0.27745855]
[1762216528298,0.02775,106450.0,106440.0,0.27745855]
[1762216528509,0.21563163,106450.0,106440.0,0.27745855]
[1762216528932,0.02775,106450.0,106440.0,0.27745855]
[1762216529138,0.24052163,106450.0,106440.0,0.27745855]
[1762216529984,0.24252163,106450.0,106440.0,0.27745855]
[1762216530190,1.85979763,106450.0,106440.0,0.08955927]
[1762216531015,1.85979763,106450.0,106440.0,0.27745855]
[1762216531869,0.18789928,106440.0,106430.0,0.22609922]
[1762216532291,1.617276,106440.0,106430.0,0.22609922]
[1762216533036,0.03516,106450.0,106440.0,0.18789928]
[1762216533037,0.01127,106450.0,106440.0,0.18789928]
[1762216533250,0.01127,106450.0,106440.0,0.27745855]
[1762216533453,0.02678,106450.0,106440.0,0.27945855]
[1762216533835,0.21466163,106450.0,106440.0,0.27745855]
[1762216534040,0.05267,106450.0,106440.0,0.27745855]
[1762216534661,0.05367,106450.0,106440.0,0.27945855]
[1762216535611,0.24155163,106450.0,106440.0,0.27745855]
[1762216535846,0.05367,106450.0,106440.0,0.27745855]
[1762216536256,0.05367,106450.0,106440.0,0.27945855]
[1762216536855,0.24155163,106450.0,106440.0,0.27745855]
[1762216537490,0.24155163,106450.0,106440.0,0.08955927]
[1762216537719,0.18789928,106440.0,106430.0,0.03818228]
[1762216537918,0.18789928,106440.0,106430.0,0.18791694]
[1762216537919,1.84457528,106440.0,106430.0,0.18791694]
[1762216538540,1.617276,106430.0,106420.0,0.31567336]
[1762216538759,0.21518694,106430.0,106420.0,0.31567336]
[1762216538967,2.36987313,106430.0,106420.0,0.27949386]
[1762216539179,1.85635294,106430.0,106420.0,0.27949386]
[1762216539383,0.02727,106430.0,106420.0,0.27949386]
[1762216539796,0.02727,106430.0,106420.0,0.28149386]
[1762216540190,0.01176,106430.0,106420.0,0.28149386]
[1762216540390,0.02727,106430.0,106420.0,0.28149386]
[1762216540589,0.21518694,106430.0,106420.0,0.28149386]
[1762216541031,0.23907694,106430.0,106420.0,0.28149386]
[1762216541236,0.23907694,106430.0,106420.0,0.28049386]
[1762216541441,0.23907694,106430.0,106420.0,0.27949386]
[1762216541933,0.02727,106430.0,106420.0,0.27949386]
[1762216542147,0.02727,106430.0,106420.0,0.31567614]
[1762216542360,1.617276,106440.0,106430.0,0.18791694]
[1762216542587,0.18789928,106440.0,106430.0,0.18791694]
[1762216542799,0.0394,106440.0,106430.0,0.18791694]
[1762216543654,0.0394,106440.0,106430.0,0.18991694]
[1762216544087,0.0404,106440.0,106430.0,0.18991694]
[1762216544309,0.20440928,106440.0,106430.0,0.18991694]
[1762216544522,0.23029928,106440.0,106430.0,0.18991694]
[1762216544953,0.0424,106440.0,106430.0,0.18991694]
[1762216545190,0.01851,106440.0,106430.0,0.18991694]
[1762216545856,0.003,106440.0,106430.0,0.18991694]
[1762216546288,0.01802,106440.0,106430.0,0.18991694]
[1762216546985,0.23077928,106440.0,106430.0,0.18991694]
[1762216547415,0.04288,106440.0,106430.0,0.18991694]
[1762216547624,0.01802,106440.0,106430.0,0.18991694]
[1762216550007,0.57886434,106460.0,106440.0,0.18789928]
[1762216550205,0.01197,106450.0,106440.0,0.27745855]
[1762216550455,0.02699,106450.0,106440.0,0.27945855]
[1762216550669,0.21487163,106450.0,106440.0,0.27745855]
[1762216551925,0.21687163,106450.0,106440.0,0.27745855]
[1762216552144,0.24173163,106450.0,106440.0,0.27745855]
[1762216552557,0.05385,106450.0,106440.0,0.27745855]
[1762216552771,0.05385,106450.0,106440.0,0.27945855]
[1762216552946,0.01397,106450.0,106440.0,0.27745855]
[1762216553164,0.01397,106450.0,106440.0,0.27945855]
[1762216553165,0.002,106450.0,106440.0,0.27945855]
[1762216553364,0.006,106450.0,106440.0,0.27945855]
[1762216553631,0.006,106450.0,106440.0,0.31564083]
[1762216554581,0.01216247,106470.0,106460.0,0.18786398]
[1762216554818,0.01216247,106470.0,106460.0,0.27942325]
[1762216555881,0.01230731,106470.0,106460.0,0.27942325]
[1762216556734,0.01830731,106470.0,106460.0,0.27942325]
[1762216557392,0.00637731,106470.0,106460.0,0.27942325]
[1762216558048,0.19422365,106470.0,106460.0,0.27942325]
[1762216558724,0.55151829,106480.0,106460.0,0.27942325]
[1762216558930,0.56348829,106480.0,106460.0,0.27942325]
[1762216559137,1.617276,106470.0,106460.0,0.27942325]
[1762216560558,0.22471794,106490.0,106480.0,0.1878287]
[1762216560776,1.994106,106490.0,106480.0,0.1878287]
[1762216561042,1.629246,106490.0,106480.0,0.27938797]
[1762216561250,0.0004,106500.0,106490.0,0.18781106]
[1762216561495,0.0004,106500.0,106490.0,0.22599334]
[1762216561732,8e-05,106510.0,106500.0,0.5639757]
[1762216561948,0.00022482,106510.0,106500.0,0.2259757]
[1762216562420,0.00022482,106510.0,106500.0,0.56565596]
[1762216562864,1e-08,106510.0,106500.0,0.56065596]
[1762216563109,1e-08,106510.0,106500.0,0.65021523]
[1762216563320,1e-08,106510.0,106500.0,0.66221522]
[1762216563542,1e-08,106510.0,106500.0,0.66021522]
[1762216563764,1e-08,106520.0,106510.0,0.23595806]
[1762216565135,1e-08,106520.0,106510.0,0.22595807]
[1762216566002,1e-08,106520.0,106510.0,0.23095807]
[1762216566450,1e-08,106520.0,106510.0,0.24395807]
[1762216567327,1e-08,106540.0,106530.0,0.57592281]
[1762216567541,1e-08,106540.0,106530.0,0.65548209]
[1762216567960,1e-08,106540.0,106530.0,0.65924238]
[1762216569006,1e-08,106540.0,106530.0,0.66924238]
[1762216570070,1e-08,106550.0,106540.0,0.5639052]
[1762216570284,0.0002,106580.0,106570.0,0.18967007]
[1762216570494,0.00034478,106580.0,106570.0,0.31541162]
[1762216570720,0.00034478,106580.0,106570.0,0.03818228]
[1762216570932,0.38145066,106580.0,106570.0,0.03818228]
[1762216571154,0.56910312,106580.0,106570.0,0.03818228]
[1762216571384,0.38145066,106580.0,106570.0,0.31541162]
[1762216571603,0.00034478,106580.0,106570.0,0.31541162]
[1762216572029,0.00034478,106580.0,106570.0,0.31741162]
[1762216573132,0.0017378,106580.0,106570.0,0.31741162]
[1762216574073,0.00890069,106600.0,106590.0,0.18763486]
[1762216574287,0.00890069,106600.0,106590.0,0.27919413]
[1762216574716,0.00936481,106600.0,106590.0,0.27919413]
[1762216575345,0.00936481,106600.0,106590.0,0.31837641]
[1762216575556,0.00936481,106600.0,106590.0,0.32037641]
[1762216577285,0.00936481,106600.0,106590.0,0.09655927]
[1762216577515,0.00936481,106600.0,106590.0,0.28419413]
[1762216577723,0.00936481,106600.0,106590.0,0.32037641]
[1762216578139,0.00936481,106600.0,106590.0,0.31737641]
[1762216578140,0.57808795,106600.0,106590.0,0.31737641]
[1762216578362,0.57808795,106600.0,106590.0,0.12974155]
[1762216578561,0.57808795,106600.0,106590.0,0.31837641]
[1762216578766,0.00936481,106600.0,106590.0,0.31837641]
[1762216578980,0.00936481,106600.0,106590.0,0.31737641]
[1762216579188,0.57808795,106600.0,106590.0,0.31737641]
[1762216579398,0.39047069,106600.0,106590.0,0.31837641]
[1762216579641,0.59323795,106600.0,106590.0,0.09455927]
[1762216579856,0.59323795,106600.0,106590.0,0.31537641]
[1762216580064,0.59323795,106600.0,106590.0,0.12974155]
[1762216580326,2.57404395,106600.0,106590.0,0.002]
[1762216580971,0.00936481,106600.0,106590.0,0.31537641]
[1762216581191,0.00936481,106600.0,106590.0,0.31737641]
[1762216581458,0.00936481,106600.0,106590.0,0.31637641]
[1762216581680,0.01236481,106600.0,106590.0,0.31637641]
[1762216581898,0.01236481,106600.0,106590.0,0.65537641]
[1762216582122,0.0002,106630.0,106620.0,0.22576434]
[1762216582341,0.00068253,106630.0,106620.0,0.22576434]
[1762216582814,0.00068253,106630.0,106620.0,0.31532361]
[1762216583250,0.00168253,106630.0,106620.0,0.65532361]
[1762216583920,8e-05,106650.0,106640.0,0.22572916]
[1762216584176,0.00022466,106650.0,106640.0,0.22572916]
[1762216584394,0.00022466,106650.0,106640.0,0.31528843]
[1762216585514,0.00022466,106650.0,106640.0,0.32028843]
[1762216585720,0.00022466,106650.0,106640.0,0.32228843]
[1762216589463,0.00022466,106650.0,106640.0,0.09855927]
[1762216589695,0.00022466,106650.0,106640.0,0.33623286]
[1762216589911,0.00022466,106650.0,106640.0,0.32228843]
[1762216590772,0.00022466,106650.0,106640.0,0.31728843]
[1762216590991,0.00022466,106650.0,106640.0,0.03818228]
[1762216590992,0.18775396,106650.0,106640.0,0.03818228]
[1762216591204,0.59736984,106650.0,106640.0,0.09155927]
[1762216591434,0.00022466,106650.0,106640.0,0.28210615]
[1762216591658,0.00022466,106650.0,106640.0,0.31828843]
[1762216591901,0.00022466,106650.0,106640.0,0.65828843]
[1762216592537,0.00022466,106650.0,106640.0,0.68546457]
[1762216592962,0.00022466,106650.0,106640.0,0.68746457]
[1762216593249,0.0013843,106650.0,106640.0,0.68746457]
[1762216593460,1e-08,106650.0,106640.0,0.70546455]
[1762216593881,1e-08,106650.0,106640.0,0.70846455]
[1762216594320,1e-08,106650.0,106640.0,0.70346455]
[1762216594535,1e-08,106650.0,106640.0,0.70746456]
[1762216595617,1e-08,106650.0,106640.0,0.69746457]
[1762216596498,1e-08,106650.0,106640.0,0.79682457]
[1762216596707,1e-08,106650.0,106640.0,0.69746457]
[1762216597773,1e-08,106650.0,106640.0,0.70746456]
[1762216598202,1e-08,106650.0,106640.0,0.69746457]
[1762216599726,1e-08,106650.0,106640.0,0.29310615]
[1762216600144,1e-08,106650.0,106640.0,0.28410615]
[1762216600369,1e-08,106650.0,106640.0,0.28610615]
[1762216600576,1e-08,106650.0,106640.0,0.32528843]
[1762216601035,1e-08,106650.0,106640.0,0.31528843]
[1762216601251,1e-08,106650.0,106640.0,0.32028843]
[1762216601908,1.60938,106730.0,106720.0,0.18740629]
[1762216602140,1.6182451,106730.0,106720.0,0.18740629]
[1762216602365,0.00014466,106730.0,106720.0,0.22358857]
[1762216602613,0.00886554,106730.0,106720.0,0.22358857]
[1762216602836,0.00014466,106730.0,106720.0,0.22558857]
[1762216603060,0.00914466,106730.0,106720.0,0.22558857]
[1762216603546,0.00014466,106730.0,106720.0,0.22558857]
[1762216603976,0.00014466,106730.0,106720.0,0.22658857]
[1762216604218,0.00014466,106730.0,106720.0,0.03918228]
[1762216604412,0.00014466,106730.0,106720.0,0.26371792]
[1762216604631,0.00014466,106730.0,106720.0,0.2449773]
[1762216604847,0.00014466,106730.0,106720.0,0.33453657]
[1762216605957,1.60938,106750.0,106740.0,0.22554029]
[1762216606171,0.00048176,106750.0,106740.0,0.24292902]
[1762216606391,0.00048176,106750.0,106740.0,0.05557101]
[1762216606606,0.00048176,106750.0,106740.0,0.35123857]
[1762216606833,0.00048176,106750.0,106740.0,0.33250146]
[1762216607052,0.00448176,106750.0,106740.0,0.05557101]
[1762216607347,0.00448176,106750.0,106740.0,0.01938873]
[1762216607559,0.40120764,106750.0,106740.0,0.108948]
[1762216607775,0.00448176,106750.0,106740.0,0.33250146]
[1762216608445,0.0022,106780.0,106770.0,0.22350081]
[1762216608688,0.00234447,106780.0,106770.0,0.05557101]
[1762216608909,0.00234447,106780.0,106770.0,0.24288954]
[1762216609357,0.00234447,106780.0,106770.0,0.58288954]
[1762216609821,0.00234447,106780.0,106770.0,0.24288954]
[1762216610253,0.00434447,106780.0,106770.0,0.24288954]
[1762216610711,0.00234447,106780.0,106770.0,0.24388954]
[1762216610944,0.00234447,106780.0,106770.0,0.24488954]
[1762216613230,0.38345035,106780.0,106770.0,0.05757101]
[1762216613673,0.38646106,106780.0,106770.0,0.24488954]
[1762216613947,0.00535518,106780.0,106770.0,0.2448102]
[1762216614164,0.42141366,106790.0,106780.0,0.03618228]
[1762216614390,0.38110588,106790.0,106780.0,0.14505094]
[1762216614810,1.60938,106790.0,106780.0,0.14305094]
[1762216615028,0.56838933,106790.0,106780.0,0.14505094]
[1762216615463,2.18960933,106790.0,106780.0,0.14605094]
[1762216615676,2.22931933,106790.0,106780.0,0.01830939]
[1762216615890,2.22931933,106790.0,106780.0,0.02030939]
[1762216616336,1.84821345,106790.0,106780.0,0.02030939]
[1762216616552,2.22931933,106790.0,106780.0,0.02030939]
[1762216616770,2.22931933,106790.0,106780.0,0.01830939]
[1762216616993,2.66389539,106790.0,106780.0,0.01830939]
[1762216617652,2.56931933,106790.0,106780.0,0.01830939]
[1762216618080,2.56931933,106790.0,106780.0,0.01730939]
[1762216618524,2.57131933,106790.0,106780.0,0.01730939]
[1762216619893,2.57155076,106790.0,106780.0,0.01730939]
[1762216620563,0.18735362,106750.0,106740.0,0.08955927]
[1762216620781,2.1778395,106750.0,106740.0,0.09170374]
[1762216621013,0.20855183,106770.0,106740.0,0.28997492]
[1762216621230,1.60938,106760.0,106750.0,0.20025362]
[1762216621449,0.5632815,106780.0,106750.0,0.20025362]
[1762216621681,0.01184,106780.0,106770.0,0.18731853]
[1762216621900,1.435559,106780.0,106770.0,0.2897778]
[1762216622115,1.435559,106760.0,106740.0,0.10060374]
[1762216622343,1.81666488,106750.0,106740.0,0.09170374]
[1762216622589,2.0314785,106750.0,106740.0,0.00114447]
[1762216622839,2.0555685,106750.0,106740.0,0.00214447]
[1762216623086,2.3955685,106750.0,106740.0,0.00014447]
[1762216623961,1.97475262,106750.0,106740.0,0.00014447]
[1762216624205,2.0040185,106750.0,106740.0,0.09170374]
[1762216624420,1.95818829,106750.0,106740.0,0.09170374]
[1762216624643,2.18525191,106750.0,106740.0,0.00214447]
[1762216624859,2.16116191,106750.0,106740.0,0.00214447]
[1762216625069,2.18625191,106750.0,106740.0,0.00014447]
[1762216625284,2.18725191,106750.0,106740.0,0.00014447]
[1762216625503,2.18625191,106750.0,106740.0,0.00014447]
[1762216625731,2.18725191,106750.0,106740.0,0.00014447]
[1762216626404,2.62182797,106750.0,106740.0,0.00014447]
[1762216627921,2.5267438,106750.0,106740.0,0.00014447]
[1762216628993,3.04853308,106750.0,106740.0,0.00014447]
[1762216629484,2.5267438,106750.0,106740.0,0.00014447]
[1762216630340,2.5026538,106750.0,106740.0,0.00014447]
[1762216630568,2.5267438,106750.0,106740.0,0.00014447]
[1762216630772,2.5026538,106750.0,106740.0,0.00014447]
[1762216631608,2.5267438,106750.0,106740.0,0.00014447]
[1762216632500,2.5267438,106750.0,106740.0,0.01761738]
[1762216634887,2.5267438,106750.0,106740.0,0.00014447]
[1762216635330,3.04853308,106750.0,106740.0,1e-08]
[1762216635785,3.07323809,106750.0,106740.0,1e-08]
[1762216635996,3.16681415,106750.0,106740.0,1e-08]
[1762216636201,3.16581415,106750.0,106740.0,1e-08]
[1762216636410,3.16681415,106750.0,106740.0,1e-08]
[1762216636628,3.17181415,106750.0,106740.0,1e-08]
[1762216637062,2.48421146,106740.0,106730.0,1e-08]
[1762216637298,2.48421146,106740.0,106680.0,0.0129]
[1762216637299,0.18744142,106700.0,106680.0,0.0129]
[1762216637534,2.14546593,106690.0,106680.0,0.01338176]
[1762216637762,1.435051,106690.0,106680.0,0.30131742]
[1762216638014,1.435051,106690.0,106680.0,0.31221742]
[1762216638463,0.69824828,106690.0,106680.0,0.02528176]
[1762216638674,1.435051,106700.0,106690.0,0.18745854]
[1762216638874,1.62249242,106700.0,106680.0,0.30131759]
[1762216639116,1.435051,106690.0,106680.0,0.30331759]
[1762216639550,0.74408433,106710.0,106680.0,0.31821759]
[1762216639551,0.73471324,106710.0,106680.0,0.31821759]
[1762216639765,1.435051,106700.0,106690.0,0.20034691]
[1762216640412,0.71375071,106700.0,106690.0,0.002]
[1762216640636,0.18745899,106690.0,106680.0,0.10894103]
[1762216640861,0.51078929,106690.0,106680.0,0.29041701]
[1762216641070,0.19957407,106710.0,106690.0,0.18745562]
[1762216641276,1.435051,106700.0,106690.0,0.18945562]
[1762216641485,0.01215,106710.0,106700.0,0.18744142]
[1762216641704,2.66976544,106710.0,106690.0,0.002]
[1762216641900,1.450571,106700.0,106690.0,0.18945899]
[1762216642112,1.435051,106700.0,106690.0,0.18945899]
[1762216642320,1.435051,106700.0,106690.0,0.20036899]
[1762216642556,1.435051,106700.0,106690.0,0.20236899]
[1762216642994,1.435051,106700.0,106690.0,0.20329587]
[1762216643181,1.435051,106710.0,106700.0,0.18742938]
[1762216643409,1.435051,106710.0,106700.0,0.28989865]
[1762216643635,1.62247485,106710.0,106700.0,0.10246927]
[1762216643845,0.18742385,106710.0,106700.0,0.10246927]
[1762216644257,0.18742385,106710.0,106700.0,0.10446927]
[1762216644704,2.16093414,106710.0,106700.0,0.09455927]
[1762216645106,2.14541414,106710.0,106700.0,0.09455927]
[1762216646214,2.14541414,106710.0,106700.0,0.29291069]
[1762216646215,1.62247485,106710.0,106700.0,0.29291069]
[1762216646432,0.51078929,106710.0,106700.0,0.29291069]
[1762216646898,1.435051,106710.0,106700.0,0.29291069]
[1762216647110,0.18742385,106710.0,106700.0,0.29291069]
[1762216647798,1.214406,106710.0,106700.0,0.29291069]
[1762216648014,1.554406,106720.0,106710.0,0.18742385]
[1762216648221,2.06519529,106720.0,106710.0,0.18742385]
[1762216648698,2.25260158,106720.0,106710.0,0.18742385]
[1762216648944,1.202256,106720.0,106710.0,0.19833385]
[1762216649142,0.73443353,106750.0,106730.0,0.18738873]
[1762216649360,1.202256,106740.0,106730.0,0.278948]
[1762216649801,0.18737118,106740.0,106730.0,0.278948]
[1762216649983,0.18737118,106740.0,106730.0,0.09155927]
[1762216650358,0.18737118,106740.0,106730.0,0.10295103]
[1762216650558,0.18737118,106740.0,106730.0,0.29033976]
[1762216650759,0.18737118,106740.0,106730.0,0.10295103]
[1762216652216,0.69816047,106740.0,106730.0,0.09204103]
[1762216652440,1.90041647,106740.0,106730.0,0.09204103]
[1762216652900,1.94030647,106740.0,106730.0,0.00048176]
[1762216653118,2.03488253,106740.0,106730.0,0.00048176]
[1762216653315,2.37488253,106740.0,106730.0,0.00048176]
[1762216654442,2.28030647,106740.0,106730.0,0.00048176]
[1762216655079,1.07805047,106740.0,106730.0,0.00048176]
[1762216655288,1.05411047,106740.0,106730.0,0.00048176]
[1762216655489,0.71411047,106740.0,106730.0,0.00048176]
[1762216655898,0.73805047,106740.0,106730.0,0.00048176]
[1762216656701,0.69816047,106740.0,106730.0,0.00048176]
[1762216656902,0.18737118,106740.0,106730.0,0.00248176]
[1762216657103,0.18737118,106740.0,106730.0,0.18987049]
[1762216657329,0.73402353,106750.0,106730.0,0.18987049]
[1762216657545,0.73402353,106750.0,106740.0,0.27693045]
[1762216657667,0.73402353,106750.0,106740.0,0.08955927]
[1762216657668,0.53929424,106750.0,106740.0,0.08955927]
[1762216657868,1.08997353,106750.0,106740.0,0.08955927]
[1762216658350,1.09197353,106750.0,106740.0,0.08955927]
[1762216658829,0.23285136,106770.0,106750.0,0.18735362]
[1762216659184,0.01215,106770.0,106760.0,0.18733608]
[1762216659389,0.01215,106770.0,106760.0,0.19724608]
[1762216659390,1.202256,106770.0,106760.0,0.19724608]
[1762216659791,1.202256,106770.0,106760.0,0.01291]
[1762216660012,1.202256,106770.0,106760.0,0.20024608]
[1762216660223,1.202256,106770.0,106760.0,0.21115608]
[1762216660436,0.18731853,106770.0,106760.0,0.01391]
[1762216660643,1.95158382,106770.0,106760.0,0.001]
[1762216660848,1.95358382,106770.0,106760.0,0.001]
[1762216661276,1.92764382,106770.0,106760.0,0.001]
[1762216661718,1.95158382,106770.0,106760.0,0.003]
[1762216663411,1.41685453,106770.0,106760.0,0.003]
[1762216663628,1.95158382,106770.0,106760.0,0.003]
[1762216667481,2.29158382,106770.0,106760.0,0.003]
[1762216668528,2.29258382,106770.0,106760.0,0.003]
[1762216669822,2.29258382,106770.0,106760.0,0.002]
[1762216670074,0.18737118,106740.0,106730.0,0.01339176]
[1762216670280,0.69816047,106740.0,106730.0,0.20078049]
[1762216670710,0.69816047,106740.0,106730.0,0.01339176]
[1762216670924,0.71358047,106740.0,106730.0,0.01339176]
[1762216671760,1.93923647,106740.0,106730.0,0.00448176]
[1762216672318,1.93923647,106740.0,106730.0,0.00648176]
[1762216675726,1.91583647,106740.0,106730.0,0.00648176]
[1762216675938,1.202256,106740.0,106730.0,0.20678049]
[1762216676135,1.202256,106740.0,106730.0,0.01939176]
[1762216676136,1.38962718,106740.0,106730.0,0.01939176]
[1762216676576,1.202256,106740.0,106730.0,0.20678049]
[1762216676987,1.38962718,106740.0,106730.0,0.01939176]
[1762216677162,1.38962718,106740.0,106730.0,0.20678049]
[1762216677163,1.202256,106740.0,106730.0,0.20678049]
[1762216677375,0.18735401,106750.0,106730.0,0.21769049]
[1762216677578,0.18735401,106750.0,106740.0,0.10246927]
[1762216678025,0.7105933,106750.0,106740.0,0.10246927]
[1762216678315,1.9282693,106750.0,106740.0,0.002]
[1762216678517,0.18737118,106740.0,106730.0,0.00848176]
[1762216678721,0.73698047,106740.0,106730.0,0.00448176]
[1762216678935,1.93923647,106740.0,106730.0,0.00448176]
[1762216679126,1.93923647,106740.0,106730.0,0.00048176]
[1762216679336,1.93923647,106740.0,106730.0,0.00248176]
[1762216679542,2.03381253,106740.0,106730.0,0.00248176]
[1762216680157,1.93923647,106740.0,106730.0,0.00648176]
[1762216680388,2.27923647,106740.0,106730.0,0.00648176]
[1762216680714,2.27923647,106740.0,106730.0,0.00248176]
[1762216681133,2.27923647,106740.0,106730.0,0.00348176]
[1762216681537,2.34910127,106740.0,106730.0,0.00348176]
[1762216682212,2.35010127,106740.0,106730.0,0.00348176]
[1762216682654,2.34910127,106740.0,106730.0,0.00148176]
[1762216683451,2.27923647,106740.0,106730.0,0.00148176]
[1762216683899,2.27923647,106740.0,106730.0,0.00048176]
[1762216684538,1.241076,106740.0,106730.0,0.00048176]
[1762216684767,0.7339933,106750.0,106730.0,0.19877964]
[1762216684972,1.202256,106740.0,106730.0,0.20077964]
[1762216685178,0.18737118,106740.0,106730.0,0.01339176]
[1762216685631,0.7339933,106750.0,106730.0,0.20078049]
[1762216685838,1.202256,106740.0,106730.0,0.20278049]
[1762216686270,0.1998089,106750.0,106740.0,0.18937118]
[1762216686421,0.59510626,106750.0,106740.0,0.27893045]
[1762216686630,0.43114736,106750.0,106740.0,0.27893045]
[1762216686836,0.61850098,106750.0,106740.0,0.27893045]
[1762216687243,0.56724431,106760.0,106750.0,0.18735362]
[1762216687444,1.202256,106750.0,106740.0,0.28984045]
[1762216687883,1.202256,106750.0,106740.0,0.29084045]
[1762216688085,1.202256,106750.0,106740.0,0.28984045]
[1762216688422,1.202256,106750.0,106740.0,0.29184045]
[1762216688834,0.01245,106750.0,106740.0,0.29184045]
[1762216689283,0.87987736,106760.0,106750.0,0.18735362]
[1762216689488,1.202256,106760.0,106750.0,0.20026362]
[1762216689686,1.202256,106760.0,106750.0,0.18935362]
[1762216689886,1.202256,106760.0,106750.0,0.20026362]
[1762216690114,1.202256,106770.0,106760.0,0.18933608]
[1762216690317,1.202256,106770.0,106760.0,0.28980535]
[1762216690516,0.00155152,106780.0,106770.0,0.18931853]
[1762216690669,0.00155152,106780.0,106770.0,0.20022853]
[1762216691374,0.18885251,106780.0,106770.0,0.22204853]
[1762216691583,0.00169588,106780.0,106770.0,0.22204853]
[1762216691978,0.00169588,106780.0,106770.0,0.25823081]
[1762216692623,0.00169588,106780.0,106770.0,0.29167133]
[1762216692830,0.00169588,106780.0,106770.0,0.25823081]
[1762216693031,0.38157324,106780.0,106770.0,0.03473]
[1762216693184,0.00169588,106780.0,106770.0,0.22204853]
[1762216693383,0.18899687,106780.0,106770.0,0.03082]
[1762216693638,0.56887423,106780.0,106770.0,0.02982]
[1762216693848,0.00169588,106780.0,106770.0,0.22804853]
[1762216694068,0.00169588,106780.0,106770.0,0.23204853]
[1762216694593,0.00169588,106780.0,106770.0,0.22604853]